[Event "Swedish Championship O65 2022"]
[Site "Uppsala"]
[Date "2022.07.03"]
[Round "2.4"]
[White "Lagerborg, Krister"]
[Black "Bytar, Peter"]
[Result "1-0"]
[ECO "E88"]
[WhiteElo "2138"]
[BlackElo "1856"]
[Annotator "RC"]
[PlyCount "121"]
[EventDate "2022.07.01"]
[EventType "tourn"]
[EventCountry "SWE"]
[SourceTitle "playchess.com"]
[Source "ChessBase"]
[SourceQuality "1"]
[TimeControl "40/5400+30:1800+30"]

1. d4 {[%emt 0:01:56]} g6 {[%emt 0:02:16]} 2. c4 {[%emt 0:00:00]} Bg7 {[%emt 0:00:08]} 3. Nc3 {[%emt 0:00:00]} Nf6 {[%emt 0:00:08]} 4. e4 {[%emt 0:00:00]} d6 {[%emt 0:00:04]} 5. f3 {[%emt 0:00:00]} O-O {[%emt 0:01:21]} 6. Be3 {[%emt 0:00:04]} c6 {[%emt 0:10:46]} 7. Bd3 {[%emt 0:01:03]} e5 {[%emt 0:02:22]} 8. d5 {[%emt 0:01:37]} Nh5 {[%emt 0:17:19]} 9. Nge2 {[%emt 0:03:43]} f5 {[%emt 0:03:33]} 10. Qd2 {[%emt 0:03:04]} f4 {[%emt 0:03:40]} 11. Bf2 {[%emt 0:00:07]} c5 {[%emt 0:07:47]} 12. a3 {[%emt 0:02:08]} Na6 {[%emt 0:09:21]} 13. Nb5 {[%emt 0:02:11]} Nc7 {[%emt 0:00:51]} 14. b4 {[%emt 0:02:08]} b6 {[%emt 0:01:21]} 15. bxc5 {[%emt 0:03:08]} bxc5 {[%emt 0:00:09]} 16. Nec3 {[%emt 0:05:14]} a6 {[%emt 0:00:58]} 17. Nxc7 {[%emt 0:00:40]} Qxc7 {[%emt 0:00:04]} 18. O-O {[%emt 0:03:44]} Bd7 {[%emt 0:00:29]} 19. Rfb1 {[%emt 0:00:45]} Rab8 {[%emt 0:00:40]} 20. Qa2 {[%emt 0:02:03]} Nf6 {[%emt 0:03:05]} 21. Rxb8 {[%emt 0:01:11]} Rxb8 {[%emt 0:00:04]} 22. Rb1 {[%emt 0:00:20]} Rb6 {[%emt 0:04:55]} 23. Be1 {[%emt 0:03:14]} Qb7 {[%emt 0:00:42]} 24. Rxb6 {[%emt 0:00:56]} Qxb6 {[%emt 0:00:02]} 25. Bc2 {[%emt 0:00:33]} Bf8 {[%emt 0:02:50]} 26. Qb1 {[%emt 0:04:25]} Qxb1 {[%emt 0:00:11]} 27. Nxb1 {[%emt 0:00:07]} Be7 {[%emt 0:05:04]} 28. Ba5 {[%emt 0:00:21]} Kf7 {[%emt 0:16:39]} 29. Kf2 {[%emt 0:00:20]} Ne8 {[%emt 0:02:42]} 30. Ke2 {[%emt 0:00:28]} Bh4 {[%emt 0:01:58]} 31. Bb6 {[%emt 0:03:21]} h5 {[%emt 0:01:36]} 32. a4 {[%emt 0:03:09]} Ke7 {[%emt 0:00:07]} 33. a5 {[%emt 0:00:25]} g5 {[%emt 0:00:11]} 34. Nc3 {[%emt 0:02:50]} g4 {[%emt 0:00:10]} 35. Na4 {[%emt 0:05:16]} gxf3+ {[%emt 0:00:22]} 36. gxf3 {[%emt 0:00:17]} Nf6 {[%emt 0:02:56]} 37. Nxc5 {[%emt 0:02:52]} dxc5 {[%emt 0:00:05]} 38. Bxc5+ {[%emt 0:00:09]} Kd8 {[%emt 0:00:33]} 39. Bd6 {[%emt 0:00:23]} Bh3 {[%emt 0:01:43]} 40. Bxe5 {[%emt 0:02:52]} Bg5 {[%emt 0:00:04]} 41. Bd4 {[%emt 0:32:32]} Bh4 {[%emt 0:24:47]} 42. e5 {[%emt 0:00:00]} Ng4 {[%emt 0:01:36]} 43. fxg4 {[%emt 0:00:00]} hxg4 {[%emt 0:00:03]} 44. Bb6+ {[%emt 0:00:00]} Ke8 {[%emt 0:01:03]} 45. Bf2 {[%emt 0:00:00]} g3 {[%emt 0:03:44]} 46. hxg3 {[%emt 0:00:00]} fxg3 {[%emt 0:00:01]} 47. Bg1 {[%emt 0:00:00]} Bg4+ {[%emt 0:00:21]} 48. Ke3 {[%emt 0:00:00]} Bg5+ {[%emt 0:00:05]} 49. Kd4 {[%emt 0:00:00]} Bd2 {[%emt 0:00:21]} 50. Bg6+ {[%emt 0:00:00]} Kf8 {[%emt 0:00:31]} 51. e6 {[%emt 0:00:00]} Be1 {[%emt 0:00:22]} 52. Ke3 {[%emt 0:00:00]} Ke7 {[%emt 0:00:47]} 53. Bd3 {[%emt 0:00:00]} Bd1 {[%emt 0:00:49]} 54. Kf4 {[%emt 0:00:00]} Bxa5 {[%emt 0:02:35]} 55. Bc5+ {[%emt 0:00:00]} Kf6 {[%emt 0:00:43]} 56. Bd4+ {[%emt 0:00:00]} Ke7 {[%emt 0:00:07]} 57. Kxg3 {[%emt 0:00:00]} Be1+ {[%emt 0:00:20]} 58. Kf4 {[%emt 0:00:00]} a5 {[%emt 0:00:17]} 59. Kf5 {[%emt 0:00:00]} Bb4 {[%emt 0:01:32]} 60. c5 {[%emt 0:00:00]} a4 {[%emt 0:00:04]} 61. d6+ {[%emt 0:00:00]} 1-0

[Event "Swedish Championship O65 2022"]
[Site "Uppsala"]
[Date "2022.07.04"]
[Round "3.1"]
[White "Soderberg, Per"]
[Black "Bellon Lopez, Juan Manuel"]
[Result "1-0"]
[ECO "B31"]
[WhiteElo "2111"]
[BlackElo "2330"]
[Annotator "TA"]
[PlyCount "48"]
[EventDate "2022.07.01"]
[EventType "tourn"]
[EventCountry "SWE"]
[SourceTitle "playchess.com"]
[Source "ChessBase"]
[SourceQuality "1"]
[TimeControl "40/5400+30:1800+30"]

{[%evp 18,48,2,10,14,20,40,6,6,0,61,60,54,54,89,74,75,0,95,87,85,85,102,41,85,4,148,92,714,712,29969,29970,29997]} 1. e4 {[%emt 0:00:04]} c5 {[%emt 0:00:07]} 2. Nf3 {[%emt 0:00:05]} Nc6 {[%emt 0:00:38]} 3. Bb5 {[%emt 0:00:20]} g6 {[%emt 0:00:57]} 4. O-O {[%emt 0:01:15]} Bg7 {[%emt 0:00:19]} 5. c3 {[%emt 0:00:37]} Nf6 {[%emt 0:01:08]} 6. Re1 {[%emt 0:00:18]} O-O {[%emt 0:00:56]} 7. d4 {[%emt 0:03:01]} d5 {[%emt 0:01:19]} 8. e5 {[%emt 0:01:14]} Ne4 {[%emt 0:01:45]} 9. h3 {[%emt 0:01:51]} cxd4 {[%emt 0:05:20]} 10. cxd4 {[%emt 0:00:11]} f6 {[%emt 0:00:13][%cal Rf6e5] B31: Sicilian: 2...Nc6 3 Bb5 g6.} 11. Nc3 {[%emt 0:12:43]} fxe5 {[%emt 0:26:09]} 12. Nxe4 {[%emt 0:13:18]} (12. dxe5 $5 {[%cal Rd1d5]} Nxc3 13. bxc3 $11) 12... dxe4 {[%emt 0:00:09] [#] The position is equal.} 13. Qb3+ $146 {[%emt 0:03:07]} ({Predecessor:} 13. Bc4+ Kh8 14. Ng5 Nxd4 15. Be3 Qe8 16. Bxd4 exd4 17. Qb3 e6 18. Rxe4 Qe7 19. f4 {1-0 (33) Dehen,L-Wernitz,A Germany West 1978}) 13... Kh8 {[%emt 0:02:25]} (13... e6 $1 $11 14. Rxe4 Qd5 15. Qxd5 exd5 16. Bxc6 bxc6 17. Rxe5 Rxf3 18. gxf3 Bxe5 19. dxe5 c5) 14. Bxc6 $14 {[%emt 0:03:30]} exf3 {[%emt 0:04:27]} 15. Bxf3 {[%emt 0:00:47]} exd4 {[%emt 0:04:00]} 16. Bg5 $36 {[%emt 0:01:57][%mdl 2048] Keeping Black busy.} Bf6 {[%emt 0:00:32]} 17. Qb5 {[%emt 0:06:41] 0x0.001b6a5e195adp-1022s more active pieces.} (17. Bxf6+ $16 Rxf6 18. Rad1) 17... e6 {[%emt 0:12:49]} (17... Qb6 $11 18. Bxf6+ exf6 19. Qxb6 axb6) 18. Bxf6+ $1 $16 {[%emt 0:07:24]} Qxf6 {[%emt 0:00:06] [#]} 19. Rad1 $1 {[%emt 0:00:53]} Rd8 {[%emt 0:02:53]} 20. Re4 {[%emt 0:18:45]} (20. Qc5 $16) 20... a5 {[%emt 0:10:50]} 21. Qc4 {[%emt 0:11:27]} (21. Qc5 $16) 21... b5 {[%emt 0:10:19] [#]} (21... e5 $11 {remains equal.}) 22. Rexd4 {[%emt 0:02:40]} ({White should play} 22. Qc7 $1) 22... Rf8 $2 {[%emt 0:09:55][%mdl 8192]} 23. Qc7 $18 {[%emt 0:02:11]} Ba6 {[%emt 0:04:01]} 24. Bxa8 {[%emt 0:01:49]} Qd8 {[%emt 0:01:01] Weighted Error Value: White=0.21 (precise) /Black=0.98} 1-0

[Event "Swedish Championship O65 2022"]
[Site "Uppsala"]
[Date "2022.07.04"]
[Round "3.2"]
[White "Dolata, Henryk"]
[Black "Bergstrom, Rolf"]
[Result "1-0"]
[ECO "B07"]
[WhiteElo "2055"]
[BlackElo "2202"]
[Annotator "RC"]
[PlyCount "109"]
[EventDate "2022.07.01"]
[EventType "tourn"]
[EventCountry "SWE"]
[SourceTitle "playchess.com"]
[Source "ChessBase"]
[SourceQuality "1"]
[TimeControl "40/5400+30:1800+30"]

1. e4 {[%emt 0:00:03]} d6 {[%emt 0:01:04]} 2. d4 {[%emt 0:00:24]} Nf6 {[%emt 0:00:09]} 3. Nc3 {[%emt 0:00:11]} Nbd7 {[%emt 0:00:08]} 4. g3 {[%emt 0:07:29]} e5 {[%emt 0:00:47]} 5. Nge2 {[%emt 0:00:58]} Be7 {[%emt 0:00:13]} 6. Bg2 {[%emt 0:00:14]} c6 {[%emt 0:01:06]} 7. O-O {[%emt 0:01:23]} h5 {[%emt 0:04:14]} 8. h3 {[%emt 0:08:15]} b5 {[%emt 0:02:33]} 9. d5 {[%emt 0:14:39]} Qc7 {[%emt 0:04:22]} 10. dxc6 {[%emt 0:01:37]} Qxc6 {[%emt 0:00:08]} 11. Nd5 {[%emt 0:00:42]} Nxd5 {[%emt 0:00:18]} 12. exd5 {[%emt 0:00:38]} Qc7 {[%emt 0:00:22]} 13. Be3 {[%emt 0:01:38]} h4 {[%emt 0:12:58]} 14. f4 {[%emt 0:15:46]} hxg3 {[%emt 0:02:59]} 15. Nxg3 {[%emt 0:03:13]} exf4 {[%emt 0:08:36]} 16. Bxf4 {[%emt 0:05:12]} Nf6 {[%emt 0:12:52]} 17. Qe2 {[%emt 0:11:06]} Kf8 {[%emt 0:02:52]} 18. Qxb5 {[%emt 0:04:32]} Rb8 {[%emt 0:05:03]} 19. Qc6 {[%emt 0:10:03]} Qd8 {[%emt 0:00:16]} 20. b3 {[%emt 0:02:30]} Bb7 {[%emt 0:13:20]} 21. Qc4 {[%emt 0:00:22]} Qb6+ {[%emt 0:00:34]} 22. Rf2 {[%emt 0:02:07]} Rc8 {[%emt 0:01:47]} 23. Qd3 {[%emt 0:00:24]} Rh4 {[%emt 0:02:44]} 24. Be3 {[%emt 0:01:34]} Qc7 {[%emt 0:00:03]} 25. c4 {[%emt 0:00:17]} Re8 {[%emt 0:00:35]} 26. Nf5 {[%emt 0:01:34]} Rh5 {[%emt 0:00:10]} 27. Bd4 {[%emt 0:01:31]} Bc8 {[%emt 0:00:15]} 28. Nxe7 {[%emt 0:02:30]} Qxe7 {[%emt 0:00:06]} 29. Bxf6 {[%emt 0:01:02]} gxf6 {[%emt 0:00:07]} 30. Raf1 {[%emt 0:00:25]} f5 {[%emt 0:01:36]} 31. Qd4 {[%emt 0:01:31]} Kg8 {[%emt 0:02:02]} 32. Rf3 {[%emt 0:00:14]} Rg5 {[%emt 0:00:57]} 33. b4 {[%emt 0:00:51]} Qe2 {[%emt 0:01:28]} 34. R3f2 {[%emt 0:00:54]} Qh5 {[%emt 0:02:06]} 35. Kh2 {[%emt 0:00:44]} Kh7 {[%emt 0:01:34]} 36. Bf3 {[%emt 0:00:27]} Qh6 {[%emt 0:00:43]} 37. Rg2 {[%emt 0:00:20]} Rxg2+ {[%emt 0:04:25]} 38. Bxg2 {[%emt 0:00:05]} Re2 {[%emt 0:05:06]} 39. Rf2 {[%emt 0:00:28]} Re3 {[%emt 0:00:18]} 40. Qf4 {[%emt 0:00:26]} Rc3 {[%emt 0:00:45]} 41. Qd4 {[%emt 0:31:20]} Qg7 {[%emt 0:33:58]} 42. Qxg7+ {[%emt 0:00:00]} Kxg7 {[%emt 0:00:00]} 43. Bf1 {[%emt 0:00:00]} Kf6 {[%emt 0:00:00]} 44. a4 {[%emt 0:00:00]} Ke5 {[%emt 0:00:00]} 45. Re2+ {[%emt 0:00:00]} Kf6 {[%emt 0:00:00]} 46. Re8 {[%emt 0:00:00]} Bd7 {[%emt 0:00:00]} 47. Rd8 {[%emt 0:00:00]} Bxa4 {[%emt 0:00:00]} 48. Rxd6+ {[%emt 0:00:00]} Ke5 {[%emt 0:00:00]} 49. Ra6 {[%emt 0:00:00]} Rc2+ {[%emt 0:00:00]} 50. Kg1 {[%emt 0:00:00]} Bb3 {[%emt 0:00:00]} 51. Rxa7 {[%emt 0:00:00]} Rc1 {[%emt 0:00:00]} 52. Rc7 {[%emt 0:00:00]} Bc2 {[%emt 0:00:00]} 53. Kf2 {[%emt 0:00:00]} Kf4 {[%emt 0:00:00]} 54. d6 {[%emt 0:01:42]} Be4 {[%emt 0:00:00]} 55. Re7 {[%emt 0:01:13]} 1-0

[Event "Swedish Championship O65 2022"]
[Site "Uppsala"]
[Date "2022.07.04"]
[Round "3.3"]
[White "Gillefalk, Bjorn"]
[Black "Lagerborg, Krister"]
[Result "1-0"]
[ECO "B84"]
[WhiteElo "2047"]
[BlackElo "2138"]
[Annotator "NA RC"]
[PlyCount "71"]
[EventDate "2022.07.01"]
[EventType "tourn"]
[EventCountry "SWE"]
[SourceTitle "playchess.com"]
[Source "ChessBase"]
[SourceQuality "1"]
[TimeControl "40/5400+30:1800+30"]

1. Nf3 {[%emt 0:00:03]} d6 {[%emt 0:00:18]} 2. e4 {[%emt 0:00:12]} c5 {[%emt 0:00:07]} 3. d4 {[%emt 0:00:05]} cxd4 {[%emt 0:00:06]} 4. Nxd4 {[%emt 0:00:05]} Nf6 {[%emt 0:00:07]} 5. Nc3 {[%emt 0:00:10]} a6 {[%emt 0:00:09]} 6. Be2 {[%emt 0:00:19]} e6 {[%emt 0:02:01]} 7. O-O {[%emt 0:00:32]} Nbd7 {[%emt 0:01:15]} 8. f4 {[%emt 0:04:27]} b5 {[%emt 0:03:14]} 9. Bf3 {[%emt 0:08:47]} e5 {[%emt 0:04:19]} 10. Nf5 {[%emt 0:05:30]} g6 {[%emt 0:05:43]} 11. Nxd6+ {[%emt 0:02:23]} Bxd6 {[%emt 0:01:56]} 12. Qxd6 {[%emt 0:00:05]} Qb6+ {[%emt 0:03:27]} 13. Qxb6 {[%emt 0:00:10]} Nxb6 {[%emt 0:00:04]} 14. fxe5 {[%emt 0:04:13]} Nfd7 {[%emt 0:02:22]} 15. Bh6 {[%emt 0:12:57]} Nxe5 {[%emt 0:08:41]} 16. Bg7 {[%emt 0:01:45]} Nxf3+ {[%emt 0:00:10]} 17. Rxf3 {[%emt 0:00:42]} Rg8 {[%emt 0:00:09]} 18. Bd4 {[%emt 0:00:08]} Nd7 {[%emt 0:07:59]} 19. Nd5 {[%emt 0:04:38]} Rb8 {[%emt 0:05:47]} 20. Raf1 {[%emt 0:06:47]} f5 {[%emt 0:05:20]} 21. exf5 {[%emt 0:02:17]} Bb7 {[%emt 0:01:35]} 22. Re3+ {[%emt 0:05:17]} Kd8 {[%emt 0:00:20]} 23. Bf6+ {[%emt 0:02:50]} Nxf6 {[%emt 0:01:02]} 24. Nxf6 {[%emt 0:00:08]} Rg7 {[%emt 0:00:53]} 25. Rd1+ {[%emt 0:01:55]} Kc8 {[%emt 0:03:54]} 26. fxg6 {[%emt 0:08:37]} Bc6 {[%emt 0:09:22]} 27. Rc3 {[%emt 0:06:14]} Kb7 {[%emt 0:01:37]} 28. Rd6 {[%emt 0:00:22]} Bxg2 {[%emt 0:11:34]} 29. Kxg2 {[%emt 0:00:41]} Rxg6+ {[%emt 0:00:06]} 30. Kf2 {[%emt 0:02:46]} Rf8 {[%emt 0:00:29]} 31. Rcc6 {[%emt 0:00:07]} a5 {[%emt 0:01:02]} 32. Ke3 {[%emt 0:01:06]} Rh6 {[%emt 0:01:35]} 33. Rb6+ {[%emt 0:00:41]} Kc8 {[%emt 0:01:20]} 34. Rdc6+ {[%emt 0:01:28]} Kd8 {[%emt 0:00:11]} 35. Rb8+ {[%emt 0:00:45]} Ke7 {[%emt 0:00:09]} 36. Rb7+ {[%emt 0:00:07]} 1-0

[Event "Swedish Championship O65 2022"]
[Site "Uppsala"]
[Date "2022.07.04"]
[Round "3.4"]
[White "Marttala, Thomas"]
[Black "Malmdin, Nils-Ake"]
[Result "1/2-1/2"]
[ECO "B07"]
[WhiteElo "2164"]
[BlackElo "2124"]
[Annotator "RC"]
[PlyCount "26"]
[EventDate "2022.07.01"]
[EventType "tourn"]
[EventCountry "SWE"]
[SourceTitle "playchess.com"]
[Source "ChessBase"]
[SourceQuality "1"]
[TimeControl "40/5400+30:1800+30"]

1. e4 {[%emt 0:00:26]} g6 {[%emt 0:00:14]} 2. d4 {[%emt 0:00:39]} Bg7 {[%emt 0:00:14]} 3. Nf3 {[%emt 0:00:40]} d6 {[%emt 0:01:54]} 4. Be2 {[%emt 0:01:16]} Nf6 {[%emt 0:04:06]} 5. Nbd2 {[%emt 0:01:50]} O-O {[%emt 0:04:56]} 6. O-O {[%emt 0:00:15]} Nc6 {[%emt 0:06:51]} 7. c3 {[%emt 0:00:49]} e5 {[%emt 0:00:45]} 8. dxe5 {[%emt 0:00:28]} dxe5 {[%emt 0:01:28]} 9. b4 {[%emt 0:01:05]} a6 {[%emt 0:00:51]} 10. a4 {[%emt 0:00:21]} Nh5 {[%emt 0:06:38]} 11. b5 {[%emt 0:10:34]} axb5 {[%emt 0:02:46]} 12. Bxb5 {[%emt 0:00:07]} Qf6 {[%emt 0:10:05]} 13. Qc2 {[%emt 0:17:08]} Bg4 {[%emt 0:02:48]} 1/2-1/2

[Event "Swedish Championship O65 2022"]
[Site "Uppsala"]
[Date "2022.07.04"]
[Round "3.5"]
[White "Jansson, Borje"]
[Black "Westin, Ake"]
[Result "0-1"]
[ECO "A41"]
[WhiteElo "2230"]
[BlackElo "1994"]
[Annotator "TA"]
[PlyCount "77"]
[EventDate "2022.07.01"]
[EventType "tourn"]
[EventCountry "SWE"]
[SourceTitle "playchess.com"]
[Source "ChessBase"]
[SourceQuality "1"]
[TimeControl "40/5400+30:1800+30"]

{[%evp 9,77,48,50,42,43,45,50,31,37,33,46,45,65,35,54,16,48,16,18,13,22,23,35,-8,15,14,13,13,28,18,30,17,30,22,45,-19,-8,-19,19,27,28,-40,-39,-36,-43,-38,25,0,0,0,20,0,17,-18,-26,-28,0,-12,-17,-25,-14,-21,0,-36,55,-80,0,0,0,-132]} 1. Nf3 {[%emt 0:00:11]} g6 {[%emt 0:01:22]} 2. d4 {[%emt 0:00:41]} Bg7 {[%emt 0:00:23]} 3. c4 {[%emt 0:00:56]} d6 {[%emt 0:01:16]} 4. Nc3 {[%emt 0:00:17]} Bg4 {[%emt 0:04:52]} 5. e3 {[%emt 0:01:04]} e6 {[%emt 0:01:54]} 6. Be2 {[%emt 0:00:16] A41: 1 d4 d6: Tartakower System and Modern Defence.} Ne7 {[%emt 0:03:20][%cal Bg8e7,Be7c6,Bc6e5][%mdl 32]} 7. O-O {[%emt 0:00:34] [#]} O-O $146 {[%emt 0:01:53]} ({Predecessor:} 7... Nd7 8. Qb3 Rb8 9. Rd1 a6 10. e4 Bxf3 11. Bxf3 e5 12. d5 O-O 13. Be3 f5 {1-0 (36) Zeynalli,M (2027)-Novakovic,J (1812) Maribor 2012}) 8. Qc2 {[%emt 0:05:16] White is slightly better.} Nd7 {[%emt 0:11:46]} 9. Rd1 {[%emt 0:00:40]} Rb8 {[%emt 0:05:55]} 10. b3 {[%emt 0:01:39]} Nc6 {[%emt 0:03:49]} 11. Bb2 {[%emt 0:01:25]} f5 {[%emt 0:10:00]} 12. a3 {[%emt 0:03:17]} Qe7 {[%emt 0:04:02]} 13. d5 {[%emt 0:01:42]} Bxf3 {[%emt 0:01:12]} 14. Bxf3 {[%emt 0:00:44]} Nce5 {[%emt 0:00:24]} 15. Be2 {[%emt 0:00:24]} c6 {[%emt 0:01:06]} 16. Rd2 {[%emt 0:06:04]} Nf7 {[%emt 0:01:52]} 17. dxe6 {[%emt 0:03:29]} Qxe6 {[%emt 0:00:17]} 18. Rad1 {[%emt 0:00:20]} Nf6 {[%emt 0:01:42]} 19. b4 {[%emt 0:08:39][%cal Bb3b4,Bb4b5][%mdl 32]} Rbd8 {[%emt 0:02:32]} 20. b5 {[%emt 0:04:44]} Ne5 {[%emt 0:03:57]} 21. Qa4 {[%emt 0:05:54]} Rf7 {[%emt 0:00:51]} 22. c5 {[%emt 0:11:39]} (22. h3 $14) 22... d5 $11 {[%emt 0:03:04]} 23. Qxa7 {[%emt 0:01:57]} Ne4 {[%emt 0:02:27]} 24. Nxe4 {[%emt 0:02:02]} fxe4 {[%emt 0:00:11]} 25. Bxe5 {[%emt 0:04:28]} (25. Qb6 $11 Re8 26. a4) 25... Bxe5 $15 {[%emt 0:00:38]} 26. Qa4 {[%emt 0:12:02]} Rdf8 {[%emt 0:05:00]} 27. f4 {[%emt 0:02:06]} Bg7 {[%emt 0:04:41]} ({Better is} 27... exf3 $15 28. Bxf3 Bc7) 28. bxc6 {[%emt 0:02:07]} bxc6 {[%emt 0:00:12]} 29. Rb1 {[%emt 0:01:24] Inhibits Rb8.} Rc8 {[%emt 0:03:45]} 30. h3 {[%emt 0:00:58] [#] Strongly threatening Bg4.} Qe7 {[%emt 0:01:37]} 31. Bg4 {[%emt 0:01:33]} Rc7 {[%emt 0:00:42]} 32. Rb8+ {[%emt 0:00:21]} Rf8 {[%emt 0:00:40]} (32... Bf8 $5 {[%cal Rh7h5]}) 33. Rxf8+ {[%emt 0:00:10]} (33. Qb3 {seems wilder.} h5 34. Be2 Qxc5 35. Rc2) 33... Bxf8 {[%emt 0:01:19]} 34. Rc2 {[%emt 0:01:20]} h5 {[%emt 0:02:28][%mdl 1024] Black has compensation.} 35. Be2 {[%emt 0:00:13]} Bg7 {[%emt 0:02:33]} 36. Rc1 {[%emt 0:03:08]} g5 {[%emt 0:01:39]} (36... Kh7 $15) 37. f5 {[%emt 0:05:29] [#]} (37. Bxh5 $14 {keeps the upper hand.} gxf4 38. exf4) 37... Qe5 {[%emt 0:01:58]} ({Black should play} 37... g4 $1 $17 {[%cal Rg4h3]} 38. Kh1 (38. hxg4 $2 Qh4 $17) 38... Qg5) 38. Bxh5 $11 {[%emt 0:01:20] aiming for Qa8+.} Qg3 {[%emt 0:03:05]} 39. Qb3 {[%emt 0:00:00] Weighted Error Value: White=0.24 (precise) /Black=0.20 (precise)} (39. Rb1 $11 {keeps the balance.} Qxe3+ 40. Kh1) 0-1

[Event "Swedish Championship O65 2022"]
[Site "Uppsala"]
[Date "2022.07.05"]
[Round "4.1"]
[White "Dolata, Henryk"]
[Black "Soderberg, Per"]
[Result "1/2-1/2"]
[ECO "B22"]
[WhiteElo "2055"]
[BlackElo "2111"]
[Annotator "TA"]
[PlyCount "31"]
[EventDate "2022.07.01"]
[EventType "tourn"]
[EventCountry "SWE"]
[SourceTitle "playchess.com"]
[Source "ChessBase"]
[SourceQuality "1"]
[TimeControl "40/5400+30:1800+30"]

{[%evp 19,31,0,29,18,30,10,20,24,15,-13,-18,-7,22,23]} 1. e4 {[%emt 0:00:03]} c5 {[%emt 0:00:06]} 2. c3 {[%emt 0:00:10]} Nf6 {[%emt 0:00:35]} 3. e5 {[%emt 0:00:17]} Nd5 {[%emt 0:00:06]} 4. d4 {[%emt 0:00:22]} cxd4 {[%emt 0:00:25]} 5. cxd4 {[%emt 0:00:12]} e6 {[%emt 0:00:06]} 6. Nf3 {[%emt 0:06:39]} d6 {[%emt 0:04:43]} 7. Bc4 {[%emt 0:04:14]} Be7 {[%emt 0:05:52]} 8. Qe2 {[%emt 0:01:24]} O-O {[%emt 0:04:49]} 9. O-O {[%emt 0:01:19]} Nc6 {[%emt 0:01:30]} 10. Qe4 {[%emt 0:10:10] 10.Rd1 gains popularity.} Ndb4 {[%emt 0:09:36] [#] Hoping for ...d5.} 11. exd6 {[%emt 0:09:06] B22: Sicilian: 2 c3.} Qxd6 {[%emt 0:00:50]} 12. Bf4 {[%emt 0:09:09]} Qd8 {[%emt 0:01:48]} 13. Nc3 {[%emt 0:03:48]} Na5 {[%emt 0:02:00]} 14. Bb5 {[%emt 0:05:52][%cal Bc4b5,Bb5a4,Ba4d7][%mdl 32] The position is equal.} a6 {[%emt 0:04:00]} 15. Ba4 {[%emt 0:06:58] [#]} Bd7 $146 {[%emt 0:07:49]} ({Predecessor:} 15... f5 16. Qe2 b5 17. Bd1 Bf6 18. Be5 Nd5 19. Nxd5 Qxd5 20. Qe1 Nc4 21. Bxf6 gxf6 {0-1 (69) Toquero Gracia,P (2080)-Pera Muntasell,M (1849) Salobrena 2019}) 16. Bxd7 {[%emt 0:16:18] An interesting draw.  Weighted Error Value: White=0.09 (flawless) /Black=0.12 (very precise)} 1/2-1/2